[Event "Titled Tuesday Blitz May 03 Early 2022"]
[White "Obolenskikh, Dmitry"]
[Black "Mikhailovsky, Vladimir"]
[WhiteFideId "4156013"]
[BlackFideId "34105414"]
[WhiteElo "2512"]
[BlackElo "2349"]
[Result "0-1"]
[Round "04"]
[TimeControl "180+1"]
[Date "2022.05.03"]
[WhiteClock "0:00:01"]
[BlackClock "0:00:09"]

1. Nf3 {[%clk 0:03:00]}  d5 {[%clk 0:02:56]} 2. e3 {[%clk 0:02:59]}  Nf6 {[%clk 0:02:55]} 3. c4 {[%clk 0:03:00]}  e6 {[%clk 0:02:56]} 4. b3 {[%clk 0:02:58]}  b6 {[%clk 0:02:53]} 5. Bb2 {[%clk 0:02:58]}  Bb7 {[%clk 0:02:53]} 6. Nc3 {[%clk 0:02:58]}  Nbd7 {[%clk 0:02:52]} 7. Rc1 {[%clk 0:02:56]}  Bd6 {[%clk 0:02:50]} 8. cxd5 {[%clk 0:02:55]}  exd5 {[%clk 0:02:42]} 9. Nb5 {[%clk 0:02:55]}  O-O {[%clk 0:02:41]} 10. Nxd6 {[%clk 0:02:54]}  cxd6 {[%clk 0:02:42]} 11. d4 {[%clk 0:02:51]}  Ne4 {[%clk 0:02:34]} 12. Bd3 {[%clk 0:02:49]}  f5 {[%clk 0:02:27]} 13. O-O {[%clk 0:02:49]}  Ndf6 {[%clk 0:02:25]} 14. Qe2 {[%clk 0:02:42]}  Qe7 {[%clk 0:02:08]} 15. Nh4 {[%clk 0:02:37]}  g6 {[%clk 0:01:55]} 16. g3 {[%clk 0:02:28]}  Rac8 {[%clk 0:01:47]} 17. a4 {[%clk 0:02:15]}  Rxc1 {[%clk 0:01:32]} 18. Rxc1 {[%clk 0:02:15]}  Rc8 {[%clk 0:01:33]} 19. Rxc8+ {[%clk 0:02:15]}  Bxc8 {[%clk 0:01:34]} 20. Qc2 {[%clk 0:02:12]}  Qb7 {[%clk 0:01:26]} 21. Bc1 {[%clk 0:01:58]}  Bd7 {[%clk 0:01:17]} 22. f3 {[%clk 0:01:57]}  Ng5 {[%clk 0:01:15]} 23. Bb5 {[%clk 0:01:46]}  Ne6 {[%clk 0:00:56]} 24. Be2 {[%clk 0:01:41]}  b5 {[%clk 0:00:49]} 25. a5 {[%clk 0:01:27]}  a6 {[%clk 0:00:39]} 26. Bd2 {[%clk 0:01:25]}  Nd8 {[%clk 0:00:36]} 27. h3 {[%clk 0:01:18]}  Nc6 {[%clk 0:00:35]} 28. b4 {[%clk 0:01:14]}  Ne7 {[%clk 0:00:30]} 29. Kf2 {[%clk 0:01:11]}  Qc6 {[%clk 0:00:30]} 30. Qxc6 {[%clk 0:01:10]}  Bxc6 {[%clk 0:00:31]} 31. g4 {[%clk 0:01:10]}  Bd7 {[%clk 0:00:24]} 32. Kg3 {[%clk 0:01:07]}  g5 {[%clk 0:00:20]} 33. Ng2 {[%clk 0:01:07]}  Kf7 {[%clk 0:00:20]} 34. Ne1 {[%clk 0:01:01]}  h6 {[%clk 0:00:20]} 35. Nd3 {[%clk 0:01:00]}  Kg6 {[%clk 0:00:18]} 36. Bd1 {[%clk 0:00:59]}  h5 {[%clk 0:00:18]} 37. Bc2 {[%clk 0:00:54]}  Kf7 {[%clk 0:00:15]} 38. Nc1 {[%clk 0:00:43]}  fxg4 {[%clk 0:00:14]} 39. hxg4 {[%clk 0:00:41]}  hxg4 {[%clk 0:00:13]} 40. fxg4 {[%clk 0:00:33]}  Ne4+ {[%clk 0:00:13]} 41. Bxe4 {[%clk 0:00:33]}  dxe4 {[%clk 0:00:11]} 42. Ne2 {[%clk 0:00:26]}  Nd5 {[%clk 0:00:11]} 43. Nc3 {[%clk 0:00:24]}  Nxc3 {[%clk 0:00:10]} 44. Bxc3 {[%clk 0:00:25]}  Be6 {[%clk 0:00:09]} 45. d5 {[%clk 0:00:24]}  Bxd5 {[%clk 0:00:08]} 46. Bd4 {[%clk 0:00:23]}  Ke6 {[%clk 0:00:07]} 47. Bb6 {[%clk 0:00:23]}  Bc4 {[%clk 0:00:07]} 48. Bd8 {[%clk 0:00:19]}  Kf7 {[%clk 0:00:05]} 49. Bxg5 {[%clk 0:00:19]}  Kg6 {[%clk 0:00:05]} 50. Be7 {[%clk 0:00:18]}  d5 {[%clk 0:00:04]} 51. Kf4 {[%clk 0:00:18]}  Be2 {[%clk 0:00:04]} 52. g5 {[%clk 0:00:18]}  Kf7 {[%clk 0:00:03]} 53. Bf6 {[%clk 0:00:18]}  Ke6 {[%clk 0:00:04]} 54. Bd4 {[%clk 0:00:17]}  Bh5 {[%clk 0:00:05]} 55. Bc5 {[%clk 0:00:11]}  Bg6 {[%clk 0:00:05]} 56. Kg4 {[%clk 0:00:12]}  Bf7 {[%clk 0:00:06]} 57. Bb6 {[%clk 0:00:08]}  Bg6 {[%clk 0:00:06]} 58. Kf4 {[%clk 0:00:09]}  Bf7 {[%clk 0:00:07]} 59. Bc5 {[%clk 0:00:09]}  Bg6 {[%clk 0:00:07]} 60. Ba7 {[%clk 0:00:05]}  Be8 {[%clk 0:00:07]} 61. Bb8 {[%clk 0:00:05]}  Bf7 {[%clk 0:00:07]} 62. Bc7 {[%clk 0:00:01]}  Bh5 {[%clk 0:00:07]} 63. Bd8 {[%clk 0:00:01]}  Bg6 {[%clk 0:00:08]} 64. Bf6 {[%clk 0:00:01]}  Kd7 {[%clk 0:00:09]} 0-1


[Site "https://www.chess.com"]

[Event "Titled Tuesday Blitz May 03 Early 2022"]
[White "Ozturk, Efe Hakan"]
[Black "Urbina Perez, Juan Antonio"]
[WhiteFideId "34550216"]
[BlackFideId "2217368"]
[WhiteElo "1924"]
[BlackElo "2192"]
[Result "1/2-1/2"]
[Round "04"]
[TimeControl "180+1"]
[Date "2022.05.03"]
[WhiteClock "0:00:07"]
[BlackClock "0:00:59"]

1. Nf3 {[%clk 0:03:00]}  g6 {[%clk 0:02:46]} 2. c4 {[%clk 0:03:00]}  Bg7 {[%clk 0:02:47]} 3. d4 {[%clk 0:03:00]}  Nf6 {[%clk 0:02:45]} 4. g3 {[%clk 0:03:00]}  d5 {[%clk 0:02:43]} 5. Bg2 {[%clk 0:02:54]}  c6 {[%clk 0:02:43]} 6. O-O {[%clk 0:02:51]}  O-O {[%clk 0:02:43]} 7. Qb3 {[%clk 0:02:45]}  dxc4 {[%clk 0:02:42]} 8. Qxc4 {[%clk 0:02:45]}  Be6 {[%clk 0:02:43]} 9. Qc2 {[%clk 0:02:39]}  Bf5 {[%clk 0:02:42]} 10. Qb3 {[%clk 0:02:38]}  Qb6 {[%clk 0:02:41]} 11. Nc3 {[%clk 0:02:33]}  Qxb3 {[%clk 0:02:39]} 12. axb3 {[%clk 0:02:34]}  Ne4 {[%clk 0:02:39]} 13. Nh4 {[%clk 0:02:25]}  Nxc3 {[%clk 0:02:38]} 14. bxc3 {[%clk 0:02:25]}  Be6 {[%clk 0:02:35]} 15. Ba3 {[%clk 0:01:47]}  Re8 {[%clk 0:02:33]} 16. Bc5 {[%clk 0:01:46]}  a6 {[%clk 0:02:30]} 17. b4 {[%clk 0:01:36]}  Nd7 {[%clk 0:02:30]} 18. Ra3 {[%clk 0:01:09]}  Rac8 {[%clk 0:02:19]} 19. Rfa1 {[%clk 0:00:48]}  b6 {[%clk 0:02:15]} 20. Rxa6 {[%clk 0:00:45]}  bxc5 {[%clk 0:02:15]} 21. bxc5 {[%clk 0:00:46]}  Nb8 {[%clk 0:02:11]} 22. Rb6 {[%clk 0:00:42]}  Red8 {[%clk 0:02:07]} 23. Ra7 {[%clk 0:00:37]}  Bf6 {[%clk 0:01:59]} 24. Nf3 {[%clk 0:00:32]}  Bd5 {[%clk 0:01:55]} 25. Bh3 {[%clk 0:00:26]}  e6 {[%clk 0:01:52]} 26. Nd2 {[%clk 0:00:21]}  Bg5 {[%clk 0:01:41]} 27. f4 {[%clk 0:00:20]}  Nd7 {[%clk 0:01:23]} 28. Rbb7 {[%clk 0:00:20]}  Bf6 {[%clk 0:01:16]} 29. e4 {[%clk 0:00:18]}  Ba2 {[%clk 0:01:06]} 30. Rxa2 {[%clk 0:00:15]}  Rb8 {[%clk 0:01:06]} 31. Rxb8 {[%clk 0:00:10]}  Rxb8 {[%clk 0:01:06]} 32. e5 {[%clk 0:00:10]}  Bg7 {[%clk 0:01:05]} 33. Bg2 {[%clk 0:00:08]}  Rc8 {[%clk 0:01:05]} 34. Ra6 {[%clk 0:00:07]}  Nb8 {[%clk 0:01:04]} 35. Ra7 {[%clk 0:00:07]}  Kf8 {[%clk 0:01:01]} 36. Nc4 {[%clk 0:00:07]}  Kg8 {[%clk 0:00:58]} 37. Nb6 {[%clk 0:00:07]}  Rd8 {[%clk 0:00:57]} 38. Rc7 {[%clk 0:00:05]}  Bf8 {[%clk 0:00:57]} 39. Bxc6 {[%clk 0:00:04]}  Na6 {[%clk 0:00:55]} 40. Ra7 {[%clk 0:00:03]}  Nxc5 {[%clk 0:00:55]} 41. dxc5 {[%clk 0:00:03]}  Bxc5+ {[%clk 0:00:56]} 42. Kg2 {[%clk 0:00:03]}  Bxb6 {[%clk 0:00:56]} 43. Ra8 {[%clk 0:00:04]}  Rxa8 {[%clk 0:00:56]} 44. Bxa8 {[%clk 0:00:05]}  Kf8 {[%clk 0:00:56]} 45. Kf3 {[%clk 0:00:03]}  Ke7 {[%clk 0:00:57]} 46. h3 {[%clk 0:00:03]}  Bc5 {[%clk 0:00:58]} 47. Be4 {[%clk 0:00:03]}  h5 {[%clk 0:00:59]} 48. g4 {[%clk 0:00:03]}  hxg4+ {[%clk 0:00:58]} 49. hxg4 {[%clk 0:00:04]}  Ba3 {[%clk 0:00:58]} 50. f5 {[%clk 0:00:05]}  g5 {[%clk 0:00:56]} 51. fxe6 {[%clk 0:00:03]}  fxe6 {[%clk 0:00:57]} 52. Ke3 {[%clk 0:00:02]}  Bb2 {[%clk 0:00:58]} 53. Kd3 {[%clk 0:00:02]}  Kd7 {[%clk 0:00:58]} 54. Bg6 {[%clk 0:00:03]}  Bc1 {[%clk 0:00:56]} 55. Kd4 {[%clk 0:00:03]}  Kc6 {[%clk 0:00:56]} 56. Be4+ {[%clk 0:00:03]}  Kd7 {[%clk 0:00:56]} 57. Bg6 {[%clk 0:00:03]}  Bf4 {[%clk 0:00:56]} 58. c4 {[%clk 0:00:03]}  Bh2 {[%clk 0:00:57]} 59. Ke4 {[%clk 0:00:03]}  Bg1 {[%clk 0:00:57]} 60. Bf7 {[%clk 0:00:03]}  Bc5 {[%clk 0:00:58]} 61. Bg6 {[%clk 0:00:04]}  Ke7 {[%clk 0:00:59]} 62. Bh5 {[%clk 0:00:03]}  Bb6 {[%clk 0:00:59]} 63. Bg6 {[%clk 0:00:04]}  Kf8 {[%clk 0:00:58]} 64. Bh5 {[%clk 0:00:04]}  Bc5 {[%clk 0:00:59]} 65. Bg6 {[%clk 0:00:04]}  Kg7 {[%clk 0:00:59]} 66. Be8 {[%clk 0:00:05]}  Bb4 {[%clk 0:00:57]} 67. Bh5 {[%clk 0:00:04]}  Kf8 {[%clk 0:00:57]} 68. Bg6 {[%clk 0:00:04]}  Bc5 {[%clk 0:00:54]} 69. Bh5 {[%clk 0:00:04]}  Ke7 {[%clk 0:00:54]} 70. Bg6 {[%clk 0:00:05]}  Kd7 {[%clk 0:00:55]} 71. Bh5 {[%clk 0:00:05]}  Kd8 {[%clk 0:00:56]} 72. Bf7 {[%clk 0:00:05]}  Ke7 {[%clk 0:00:57]} 73. Bh5 {[%clk 0:00:06]}  Kf8 {[%clk 0:00:57]} 74. Bg6 {[%clk 0:00:06]}  Kg7 {[%clk 0:00:58]} 75. Be8 {[%clk 0:00:06]}  Kf8 {[%clk 0:00:58]} 76. Bh5 {[%clk 0:00:07]}  Ke7 {[%clk 0:00:58]} 77. Bg6 {[%clk 0:00:07]}  Kd7 {[%clk 0:00:58]} 78. Bf7 {[%clk 0:00:07]}  Kd8 {[%clk 0:00:59]} 79. Bh5 {[%clk 0:00:07]}  Ke7 {[%clk 0:00:59]} 1/2-1/2


[Site "https://www.chess.com"]

[Event "Titled Tuesday Blitz May 03 Early 2022"]
[White "Pasti, Aron"]
[Black "Barp, Alberto"]
[WhiteFideId "785857"]
[BlackFideId "872555"]
[WhiteElo "2133"]
[BlackElo "2229"]
[Result "1-0"]
[Round "04"]
[TimeControl "180+1"]
[Date "2022.05.03"]
[WhiteClock "0:00:29"]
[BlackClock "0:00:44"]

1. e4 {[%clk 0:03:00]}  c6 {[%clk 0:02:52]} 2. d4 {[%clk 0:02:45]}  d5 {[%clk 0:02:53]} 3. Nc3 {[%clk 0:02:45]}  dxe4 {[%clk 0:02:52]} 4. Nxe4 {[%clk 0:02:46]}  Nf6 {[%clk 0:02:52]} 5. Nxf6+ {[%clk 0:02:46]}  exf6 {[%clk 0:02:53]} 6. c3 {[%clk 0:02:46]}  Bd6 {[%clk 0:02:53]} 7. Bd3 {[%clk 0:02:46]}  O-O {[%clk 0:02:53]} 8. Ne2 {[%clk 0:02:47]}  Re8 {[%clk 0:02:50]} 9. O-O {[%clk 0:02:45]}  h5 {[%clk 0:02:48]} 10. Qc2 {[%clk 0:02:38]}  h4 {[%clk 0:02:48]} 11. Bf4 {[%clk 0:02:37]}  h3 {[%clk 0:02:43]} 12. g3 {[%clk 0:02:35]}  b5 {[%clk 0:02:38]} 13. Rfe1 {[%clk 0:02:26]}  Bg4 {[%clk 0:02:36]} 14. Bxd6 {[%clk 0:02:24]}  Qxd6 {[%clk 0:02:37]} 15. Nf4 {[%clk 0:02:25]}  Nd7 {[%clk 0:02:36]} 16. Bf5 {[%clk 0:02:24]}  Bf3 {[%clk 0:02:09]} 17. Bxh3 {[%clk 0:02:20]}  g5 {[%clk 0:02:09]} 18. Qf5 {[%clk 0:01:39]}  Nf8 {[%clk 0:01:47]} 19. Bg4 {[%clk 0:01:16]}  Bd5 {[%clk 0:01:12]} 20. Nxd5 {[%clk 0:01:06]}  cxd5 {[%clk 0:01:07]} 21. Bf3 {[%clk 0:01:03]}  Rxe1+ {[%clk 0:01:05]} 22. Rxe1 {[%clk 0:01:02]}  Rd8 {[%clk 0:01:06]} 23. b4 {[%clk 0:00:54]}  Kg7 {[%clk 0:01:05]} 24. h4 {[%clk 0:00:53]}  gxh4 {[%clk 0:01:05]} 25. gxh4 {[%clk 0:00:54]}  Ne6 {[%clk 0:01:02]} 26. Re3 {[%clk 0:00:45]}  Rg8 {[%clk 0:00:54]} 27. Bxd5 {[%clk 0:00:35]}  Kf8+ {[%clk 0:00:50]} 28. Kf1 {[%clk 0:00:33]}  Nf4 {[%clk 0:00:43]} 29. Qc8+ {[%clk 0:00:31]}  Kg7 {[%clk 0:00:44]} 30. Rg3+ {[%clk 0:00:29]} 1-0


[Site "https://www.chess.com"]

[Event "Titled Tuesday Blitz May 03 Early 2022"]
[White "Petrovic, Aleksa"]
[Black "Horobetz, Graham"]
[WhiteFideId "967629"]
[BlackFideId "2047322"]
[WhiteElo "2198"]
[BlackElo "2644"]
[Result "0-1"]
[Round "04"]
[TimeControl "180+1"]
[Date "2022.05.03"]
[WhiteClock "0:00:01"]
[BlackClock "0:00:05"]

1. d4 {[%clk 0:03:00]}  Nf6 {[%clk 0:02:59]} 2. c4 {[%clk 0:03:01]}  e6 {[%clk 0:03:00]} 3. Nf3 {[%clk 0:03:01]}  d5 {[%clk 0:02:58]} 4. Nc3 {[%clk 0:03:00]}  Bb4 {[%clk 0:02:55]} 5. Qa4+ {[%clk 0:02:58]}  Nc6 {[%clk 0:02:55]} 6. e3 {[%clk 0:02:59]}  O-O {[%clk 0:02:53]} 7. Qc2 {[%clk 0:02:59]}  Re8 {[%clk 0:02:49]} 8. Bd2 {[%clk 0:02:59]}  e5 {[%clk 0:02:43]} 9. dxe5 {[%clk 0:02:42]}  Nxe5 {[%clk 0:02:42]} 10. Nxe5 {[%clk 0:02:41]}  Rxe5 {[%clk 0:02:41]} 11. cxd5 {[%clk 0:02:36]}  Nxd5 {[%clk 0:02:40]} 12. Nxd5 {[%clk 0:02:15]}  Bxd2+ {[%clk 0:02:40]} 13. Qxd2 {[%clk 0:02:16]}  Rxd5 {[%clk 0:02:40]} 14. Qc3 {[%clk 0:02:15]}  Bg4 {[%clk 0:02:29]} 15. f3 {[%clk 0:02:03]}  Be6 {[%clk 0:02:20]} 16. e4 {[%clk 0:01:56]}  Rd4 {[%clk 0:02:14]} 17. Be2 {[%clk 0:01:51]}  c5 {[%clk 0:02:09]} 18. O-O {[%clk 0:01:43]}  Qb6 {[%clk 0:02:09]} 19. Rac1 {[%clk 0:01:38]}  c4 {[%clk 0:02:05]} 20. Kh1 {[%clk 0:01:31]}  Rad8 {[%clk 0:02:04]} 21. h3 {[%clk 0:01:01]}  Bxh3 {[%clk 0:01:14]} 22. gxh3 {[%clk 0:00:56]}  Qh6 {[%clk 0:01:14]} 23. f4 {[%clk 0:00:23]}  g6 {[%clk 0:01:06]} 24. Qf3 {[%clk 0:00:20]}  b5 {[%clk 0:00:55]} 25. Rfd1 {[%clk 0:00:20]}  Qh4 {[%clk 0:00:47]} 26. Rxd4 {[%clk 0:00:19]}  Rxd4 {[%clk 0:00:48]} 27. Rd1 {[%clk 0:00:19]}  Qd8 {[%clk 0:00:41]} 28. Rxd4 {[%clk 0:00:18]}  Qxd4 {[%clk 0:00:42]} 29. f5 {[%clk 0:00:14]}  Qxb2 {[%clk 0:00:39]} 30. f6 {[%clk 0:00:14]}  Qe5 {[%clk 0:00:29]} 31. a4 {[%clk 0:00:11]}  a6 {[%clk 0:00:28]} 32. axb5 {[%clk 0:00:11]}  axb5 {[%clk 0:00:29]} 33. Qe3 {[%clk 0:00:09]}  Qxf6 {[%clk 0:00:23]} 34. e5 {[%clk 0:00:09]}  Qe7 {[%clk 0:00:16]} 35. Qd4 {[%clk 0:00:08]}  h5 {[%clk 0:00:12]} 36. Qd6 {[%clk 0:00:07]}  Qxd6 {[%clk 0:00:10]} 37. exd6 {[%clk 0:00:07]}  Kf8 {[%clk 0:00:10]} 38. Kg2 {[%clk 0:00:07]}  Ke8 {[%clk 0:00:10]} 39. Kf3 {[%clk 0:00:05]}  Kd7 {[%clk 0:00:10]} 40. Ke4 {[%clk 0:00:05]}  Kxd6 {[%clk 0:00:11]} 41. Kd4 {[%clk 0:00:05]}  Ke6 {[%clk 0:00:10]} 42. Kc5 {[%clk 0:00:04]}  Ke5 {[%clk 0:00:10]} 43. Kxb5 {[%clk 0:00:05]}  c3 {[%clk 0:00:10]} 44. Bd3 {[%clk 0:00:03]}  Kd4 {[%clk 0:00:11]} 45. Bc2 {[%clk 0:00:04]}  Ke3 {[%clk 0:00:11]} 46. Kc4 {[%clk 0:00:03]}  Kd2 {[%clk 0:00:11]} 47. Kb3 {[%clk 0:00:04]}  g5 {[%clk 0:00:10]} 48. Bf5 {[%clk 0:00:03]}  f6 {[%clk 0:00:04]} 49. Be4 {[%clk 0:00:02]}  g4 {[%clk 0:00:04]} 50. hxg4 {[%clk 0:00:03]}  hxg4 {[%clk 0:00:05]} 51. Bf5 {[%clk 0:00:01]}  g3 {[%clk 0:00:05]} 52. Be4 {[%clk 0:00:02]}  f5 {[%clk 0:00:05]} 53. Bxf5 {[%clk 0:00:01]}  g2 {[%clk 0:00:05]} 0-1


[Site "https://www.chess.com"]

[Event "Titled Tuesday Blitz May 03 Early 2022"]
[White "Pinheiro, Iung Alicio de O."]
[Black "Preotu, Razvan"]
[WhiteFideId "2104350"]
[BlackFideId "2613280"]
[WhiteElo "2561"]
[BlackElo "2407"]
[Result "0-1"]
[Round "04"]
[TimeControl "180+1"]
[Date "2022.05.03"]
[WhiteClock "0:00:07"]
[BlackClock "0:00:04"]

1. c4 {[%clk 0:02:59]}  c5 {[%clk 0:02:59]} 2. g3 {[%clk 0:02:59]}  Nc6 {[%clk 0:02:59]} 3. Bg2 {[%clk 0:02:59]}  g6 {[%clk 0:02:59]} 4. a3 {[%clk 0:02:58]}  Bg7 {[%clk 0:02:59]} 5. Nc3 {[%clk 0:02:59]}  b6 {[%clk 0:02:54]} 6. d3 {[%clk 0:02:31]}  Bb7 {[%clk 0:02:53]} 7. e4 {[%clk 0:02:30]}  d6 {[%clk 0:02:32]} 8. Nge2 {[%clk 0:02:29]}  Nf6 {[%clk 0:02:32]} 9. O-O {[%clk 0:02:27]}  O-O {[%clk 0:02:24]} 10. Rb1 {[%clk 0:02:26]}  e6 {[%clk 0:01:31]} 11. Bg5 {[%clk 0:02:01]}  h6 {[%clk 0:01:30]} 12. Bf4 {[%clk 0:02:00]}  Kh7 {[%clk 0:01:20]} 13. h3 {[%clk 0:01:57]}  Qe7 {[%clk 0:00:59]} 14. b4 {[%clk 0:01:51]}  Rad8 {[%clk 0:00:59]} 15. Qa4 {[%clk 0:01:45]}  Nd4 {[%clk 0:00:43]} 16. Nxd4 {[%clk 0:01:30]}  cxd4 {[%clk 0:00:44]} 17. Ne2 {[%clk 0:01:24]}  a6 {[%clk 0:00:36]} 18. Rfe1 {[%clk 0:01:08]}  Nh5 {[%clk 0:00:35]} 19. Bd2 {[%clk 0:01:07]}  f5 {[%clk 0:00:33]} 20. exf5 {[%clk 0:00:58]}  gxf5 {[%clk 0:00:33]} 21. Nf4 {[%clk 0:00:54]}  Nxf4 {[%clk 0:00:30]} 22. Bxf4 {[%clk 0:00:55]}  Bxg2 {[%clk 0:00:30]} 23. Kxg2 {[%clk 0:00:56]}  e5 {[%clk 0:00:30]} 24. Qc6 {[%clk 0:00:52]}  Qf7 {[%clk 0:00:23]} 25. Bd2 {[%clk 0:00:51]}  f4 {[%clk 0:00:20]} 26. Qe4+ {[%clk 0:00:48]}  Kh8 {[%clk 0:00:20]} 27. g4 {[%clk 0:00:48]}  f3+ {[%clk 0:00:19]} 28. Kh1 {[%clk 0:00:42]}  b5 {[%clk 0:00:20]} 29. Rbc1 {[%clk 0:00:39]}  bxc4 {[%clk 0:00:20]} 30. dxc4 {[%clk 0:00:39]}  Rc8 {[%clk 0:00:18]} 31. Qd3 {[%clk 0:00:38]}  Rc7 {[%clk 0:00:13]} 32. c5 {[%clk 0:00:36]}  dxc5 {[%clk 0:00:13]} 33. Rxc5 {[%clk 0:00:34]}  Rxc5 {[%clk 0:00:13]} 34. bxc5 {[%clk 0:00:35]}  Qd5 {[%clk 0:00:13]} 35. Bb4 {[%clk 0:00:34]}  Rf4 {[%clk 0:00:11]} 36. Qxa6 {[%clk 0:00:27]}  e4 {[%clk 0:00:11]} 37. c6 {[%clk 0:00:22]}  Rf7 {[%clk 0:00:09]} 38. Qc8+ {[%clk 0:00:19]}  Kh7 {[%clk 0:00:09]} 39. c7 {[%clk 0:00:19]}  e3 {[%clk 0:00:09]} 40. Qd8 {[%clk 0:00:16]}  Rd7 {[%clk 0:00:04]} 41. Qb8 {[%clk 0:00:09]}  exf2 {[%clk 0:00:04]} 42. Rf1 {[%clk 0:00:09]}  Qc4 {[%clk 0:00:04]} 43. Rxf2 {[%clk 0:00:08]}  Qc1+ {[%clk 0:00:04]} 44. Kh2 {[%clk 0:00:07]}  Be5# {[%clk 0:00:04]} 0-1


[Site "https://www.chess.com"]

[Event "Titled Tuesday Blitz May 03 Early 2022"]
[White "Popadic, Dragan"]
[Black "Ismayil, Malak"]
[WhiteFideId "913650"]
[BlackFideId "13412604"]
[WhiteElo "2203"]
[BlackElo "1879"]
[Result "0-1"]
[Round "04"]
[TimeControl "180+1"]
[Date "2022.05.03"]
[WhiteClock "0:00:02"]
[BlackClock "0:00:06"]

1. e4 {[%clk 0:02:59]}  e5 {[%clk 0:00:16]} 2. d4 {[%clk 0:02:57]}  Nc6 {[%clk 0:00:17]} 3. dxe5 {[%clk 0:02:56]}  Nxe5 {[%clk 0:00:16]} 4. Nf3 {[%clk 0:02:56]}  Nc6 {[%clk 0:00:17]} 5. Nc3 {[%clk 0:02:53]}  Bc5 {[%clk 0:00:18]} 6. Bc4 {[%clk 0:02:47]}  d6 {[%clk 0:00:18]} 7. h3 {[%clk 0:02:46]}  Nf6 {[%clk 0:00:17]} 8. O-O {[%clk 0:02:45]}  O-O {[%clk 0:00:18]} 9. Bg5 {[%clk 0:02:43]}  Be6 {[%clk 0:00:18]} 10. Nd5 {[%clk 0:02:37]}  Bxd5 {[%clk 0:00:18]} 11. exd5 {[%clk 0:02:37]}  Ne5 {[%clk 0:00:17]} 12. Bb3 {[%clk 0:02:30]}  h6 {[%clk 0:00:15]} 13. Bh4 {[%clk 0:02:29]}  Ng6 {[%clk 0:00:15]} 14. Bg3 {[%clk 0:02:24]}  Qd7 {[%clk 0:00:16]} 15. Qd2 {[%clk 0:02:20]}  Rae8 {[%clk 0:00:16]} 16. Rae1 {[%clk 0:02:20]}  Qf5 {[%clk 0:00:15]} 17. Nd4 {[%clk 0:02:07]}  Qh5 {[%clk 0:00:13]} 18. Nb5 {[%clk 0:01:50]}  Ne4 {[%clk 0:00:12]} 19. Qd3 {[%clk 0:01:21]}  Nxg3 {[%clk 0:00:11]} 20. Qxg3 {[%clk 0:01:21]}  Bb6 {[%clk 0:00:12]} 21. Nc3 {[%clk 0:01:12]}  Qf5 {[%clk 0:00:11]} 22. Na4 {[%clk 0:01:00]}  Nf4 {[%clk 0:00:10]} 23. Nxb6 {[%clk 0:00:47]}  axb6 {[%clk 0:00:11]} 24. Qf3 {[%clk 0:00:46]}  Qf6 {[%clk 0:00:12]} 25. Ba4 {[%clk 0:00:29]}  Re5 {[%clk 0:00:11]} 26. Rxe5 {[%clk 0:00:28]}  Qxe5 {[%clk 0:00:10]} 27. Rd1 {[%clk 0:00:22]}  Ng6 {[%clk 0:00:10]} 28. c3 {[%clk 0:00:18]}  Qf6 {[%clk 0:00:10]} 29. Qe2 {[%clk 0:00:15]}  Ne5 {[%clk 0:00:09]} 30. Bc2 {[%clk 0:00:14]}  g6 {[%clk 0:00:07]} 31. Re1 {[%clk 0:00:14]}  Kg7 {[%clk 0:00:08]} 32. Kf1 {[%clk 0:00:13]}  Ra8 {[%clk 0:00:06]} 33. a3 {[%clk 0:00:12]}  Nd7 {[%clk 0:00:06]} 34. Qc4 {[%clk 0:00:11]}  Rc8 {[%clk 0:00:05]} 35. Qb5 {[%clk 0:00:10]}  Ne5 {[%clk 0:00:05]} 36. Qe2 {[%clk 0:00:09]}  h5 {[%clk 0:00:05]} 37. Qd2 {[%clk 0:00:09]}  Nd7 {[%clk 0:00:05]} 38. Qd3 {[%clk 0:00:08]}  Nc5 {[%clk 0:00:04]} 39. Qe3 {[%clk 0:00:07]}  b5 {[%clk 0:00:04]} 40. Qe7 {[%clk 0:00:07]}  Qxe7 {[%clk 0:00:03]} 41. Rxe7 {[%clk 0:00:05]}  Kf6 {[%clk 0:00:04]} 42. Re2 {[%clk 0:00:05]}  Nd7 {[%clk 0:00:05]} 43. Ke1 {[%clk 0:00:04]}  Nb6 {[%clk 0:00:05]} 44. Bd3 {[%clk 0:00:03]}  Nxd5 {[%clk 0:00:05]} 45. Bxb5 {[%clk 0:00:02]}  Nf4 {[%clk 0:00:06]} 0-1


[Site "https://www.chess.com"]

[Event "Titled Tuesday Blitz May 03 Early 2022"]
[White "Redor, Menandro"]
[Black "Winkels, Marcel"]
[WhiteFideId "5222010"]
[BlackFideId "1003887"]
[WhiteElo "1986"]
[BlackElo "1900"]
[Result "0-1"]
[Round "04"]
[TimeControl "180+1"]
[Date "2022.05.03"]
[WhiteClock "0:01:37"]
[BlackClock "0:01:39"]

1. e4 {[%clk 0:02:59]}  c5 {[%clk 0:02:59]} 2. Nf3 {[%clk 0:02:50]}  d6 {[%clk 0:02:59]} 3. d3 {[%clk 0:02:50]}  Nc6 {[%clk 0:02:58]} 4. g3 {[%clk 0:02:50]}  g6 {[%clk 0:02:58]} 5. Bg2 {[%clk 0:02:50]}  Bg7 {[%clk 0:02:59]} 6. O-O {[%clk 0:02:50]}  e5 {[%clk 0:03:00]} 7. Nc3 {[%clk 0:02:50]}  Nge7 {[%clk 0:03:00]} 8. Nd5 {[%clk 0:02:50]}  Nxd5 {[%clk 0:02:57]} 9. exd5 {[%clk 0:02:50]}  Ne7 {[%clk 0:02:58]} 10. c4 {[%clk 0:02:50]}  O-O {[%clk 0:02:56]} 11. Re1 {[%clk 0:02:50]}  f5 {[%clk 0:02:56]} 12. a3 {[%clk 0:02:45]}  h6 {[%clk 0:02:55]} 13. b4 {[%clk 0:02:44]}  b6 {[%clk 0:02:54]} 14. Qe2 {[%clk 0:02:33]}  Bd7 {[%clk 0:02:47]} 15. Rb1 {[%clk 0:02:28]}  Qc8 {[%clk 0:02:45]} 16. d4 {[%clk 0:02:25]}  e4 {[%clk 0:02:37]} 17. dxc5 {[%clk 0:02:21]}  exf3 {[%clk 0:02:33]} 18. Qxe7 {[%clk 0:02:16]}  Re8 {[%clk 0:02:32]} 19. cxd6 {[%clk 0:02:11]}  Rxe7 {[%clk 0:02:31]} 20. dxe7 {[%clk 0:02:12]}  fxg2 {[%clk 0:02:24]} 21. Bf4 {[%clk 0:01:56]}  Qxc4 {[%clk 0:02:21]} 22. Rbc1 {[%clk 0:01:52]}  Qxd5 {[%clk 0:02:17]} 23. Rcd1 {[%clk 0:01:53]}  Qb7 {[%clk 0:02:14]} 24. Rd6 {[%clk 0:01:50]}  g5 {[%clk 0:01:58]} 25. Red1 {[%clk 0:01:48]}  Be8 {[%clk 0:01:50]} 26. Rd8 {[%clk 0:01:43]}  gxf4 {[%clk 0:01:46]} 27. Rxa8 {[%clk 0:01:40]}  Qxa8 {[%clk 0:01:45]} 28. b5 {[%clk 0:01:38]}  Kf7 {[%clk 0:01:41]} 29. Rd8 {[%clk 0:01:37]}  Qf3 {[%clk 0:01:39]} 0-1


[Site "https://www.chess.com"]